bitfinex-derivatives/quotes_SOLF0:USTF0_20250731
["timestamp","ask_amount","ask_price","bid_price","bid_amount"]
[1754001989907,3.6500641,172.84,172.79,3.36]
[1754001990108,108.58,172.9,172.79,7.0100641]
[1754001990109,3.13,172.85,172.79,7.0100641]
[1754001990304,4.23957453,172.84,172.8,3.36]
[1754001990505,5.7868,172.83,172.8,5.7875]
[1754001990708,5.7868,172.83,172.81,3.36]
[1754001990910,3.13,172.85,172.81,3.36]
[1754001991108,5.7863,172.84,172.81,5.787]
[1754001991308,5.7863,172.84,172.82,3.36]
[1754001992408,5.7863,172.84,172.82,9.1468]
[1754001992610,5.7863,172.84,172.83,3.36]
[1754001994108,13.15701018,172.84,172.83,3.36]
[1754001994814,8.9167,172.83,172.8,5.7874]
[1754001995010,8.9167,172.83,172.82,3.36]
[1754001995514,5.7874,172.81,172.79,7.0100641]
[1754001995719,3.13,172.81,172.78,3.36]
[1754001995910,3.13,172.8,172.79,3.36]
[1754001996106,3.6500641,172.83,172.78,5.7882]
[1754001996415,3.13,172.81,172.8,3.36]
[1754001997415,8.9172,172.81,172.8,3.36]
[1754001998617,13.15657699,172.81,172.8,3.36]
[1754001999615,10.02657699,172.81,172.8,3.36]
[1754001999812,5.7872,172.81,172.8,3.36]
[1754002002228,3.13,172.86,172.8,3.36]
[1754002002426,7.36393044,172.85,172.8,3.36]
[1754002002629,7.36393044,172.84,172.8,3.36]
[1754002002822,3.13,172.84,172.79,3.6500641]
[1754002003129,3.13,172.82,172.78,3.36]
[1754002003336,3.13,172.8,172.74,3.36]
[1754002003526,3.13,172.78,172.74,3.36]
[1754002003726,3.13,172.77,172.75,3.36]
[1754002003925,3.13,172.75,172.73,3.36]
[1754002004117,3.13,172.73,172.72,3.36]
[1754002004322,8.9205,172.72,172.71,3.36]
[1754002004624,5.7905,172.72,172.71,3.36]
[1754002005129,6.7800641,172.75,172.71,3.36]
[1754002005322,3.13,172.77,172.71,3.36]
[1754002005724,5.7895,172.75,172.72,5.7902]
[1754002005925,5.7895,172.75,172.73,3.36]
[1754002006520,5.789,172.76,172.73,3.36]
[1754002006725,3.6500641,172.8,172.73,3.36]
[1754002006930,7.3674811,172.79,172.73,3.36]
[1754002007124,5.7888,172.77,172.74,5.7895]
[1754002007327,5.7888,172.77,172.75,3.36]
[1754002007828,5.7883,172.78,172.75,5.7892]
[1754002008126,3.13,172.79,172.77,3.36]
[1754002008329,4.23847969,172.78,172.72,3.6500641]
[1754002008526,5.7882,172.79,172.75,3.6500641]
[1754002008826,3.13,172.81,172.74,5.40580158]
[1754002009127,3.13,172.79,172.75,3.36]
[1754002009528,5.40580158,172.84,172.74,5.7895]
[1754002009529,5.7887,172.77,172.74,5.7895]
[1754002009723,5.7887,172.77,172.76,3.36]
[1754002011220,8.9187,172.77,172.76,3.36]
[1754002011531,8.9183,172.78,172.77,3.36]
[1754002011925,5.788,172.79,172.77,3.36]
[1754002012125,3.13,172.83,172.77,3.36]
[1754002012325,3.13,172.82,172.77,3.36]
[1754002012530,5.7874,172.81,172.78,5.788]
[1754002012829,8.9174,172.81,172.8,3.36]
[1754002013233,4.24100396,172.81,172.8,3.36]
[1754002013427,3.13,172.83,172.81,3.36]
[1754002013627,4.24130023,172.82,172.81,3.36]
[1754002013928,10.02820023,172.82,172.81,3.36]
[1754002014130,5.7869,172.82,172.81,3.36]
[1754002014324,13.15854311,172.82,172.81,3.36]
[1754002018236,7.37164311,172.82,172.77,5.7884]
[1754002018426,3.1,172.81,172.77,5.7884]
[1754002018622,5.7876,172.8,172.77,5.7884]
[1754002018827,3.1,172.81,172.78,3.35]
[1754002019039,3.1,172.81,172.8,3.35]
[1754002019232,5.7871,172.82,172.81,3.35]
[1754002019429,13.11990353,172.82,172.81,3.35]
[1754002020727,5.7877,172.8,172.79,3.35]
[1754002021234,3.1,172.8,172.75,5.40580158]
[1754002021535,5.7884,172.78,172.77,3.35]
[1754002022434,5.40580158,172.82,172.71,3.35]
[1754002022640,5.40580158,172.82,172.69,108.56]
[1754002022641,4.22955493,172.81,172.73,3.35]
[1754002022841,3.1,172.8,172.75,5.7892]
[1754002023029,3.1,172.79,172.76,3.35]
[1754002023533,5.788,172.79,172.76,3.35]
[1754002023740,5.788,172.79,172.77,3.35]
[1754002024635,5.7882,172.78,172.77,3.35]
[1754002025139,108.56,172.88,172.73,5.7897]
[1754002025140,3.1,172.79,172.73,5.7897]
[1754002025435,8.50580158,172.82,172.73,3.35]
[1754002025634,5.7881,172.79,172.75,5.789]
[1754002025939,5.40580158,172.84,172.73,3.35]
[1754002026138,5.7888,172.77,172.73,5.7898]
[1754002026437,5.40580158,172.8,172.75,3.35]
[1754002026634,3.1,172.76,172.75,3.35]
[1754002026935,8.8893,172.75,172.74,3.35]
[1754002027136,3.1,172.74,172.72,3.35]
[1754002027335,5.7904,172.72,172.7,3.35]
[1754002027540,3.1,172.72,172.7,3.35]
[1754002027735,3.1,172.73,172.7,3.35]
[1754002027940,3.1,172.73,172.63,152.52]
[1754002027941,3.1,172.73,172.68,3.35]
[1754002028135,3.1,172.73,172.69,3.35]
[1754002028539,3.1,172.73,172.63,157.92580158]
[1754002028836,3.65352336,172.72,172.64,3.65352336]
[1754002029038,3.1,172.71,172.69,3.35]
[1754002029339,3.1,172.7,172.69,3.35]
[1754002030340,8.8909,172.7,172.69,3.35]
[1754002030536,3.1,172.69,172.64,3.35]
[1754002030745,3.1,172.68,172.64,3.35]
[1754002030938,3.1,172.68,172.66,3.35]
[1754002031239,8.8922,172.67,172.66,3.35]
[1754002031442,5.7922,172.67,172.66,3.35]
[1754002031641,6.75352336,172.69,172.66,3.35]
[1754002031838,3.1,172.68,172.64,3.35]
[1754002032344,3.1,172.68,172.65,3.35]
[1754002032642,3.65352336,172.69,172.65,3.35]
[1754002032840,5.7918,172.68,172.65,5.7925]
[1754002033042,6.75352336,172.71,172.66,3.35]
[1754002033339,3.1,172.7,172.66,3.35]
[1754002033638,5.7915,172.69,172.66,3.35]
[1754002034046,6.75352336,172.7,172.66,3.35]
[1754002034246,3.1,172.69,172.66,3.35]
[1754002034943,3.1,172.69,172.67,3.35]
[1754002035244,5.7916,172.68,172.67,3.35]
[1754002035650,5.7916,172.68,172.65,5.7924]
[1754002035836,5.7919,172.67,172.64,5.7928]
[1754002036144,3.1,172.68,172.63,108.52]
[1754002036333,3.1,172.68,172.64,3.35]
[1754002036737,5.7917,172.68,172.66,3.35]
[1754002037145,3.65352336,172.68,172.58,389.02]
[1754002037346,3.1,172.67,172.6,7.00352336]
[1754002037541,3.1,172.69,172.62,3.65352336]
[1754002037746,3.1,172.69,172.66,3.35]
[1754002038248,3.1,172.69,172.67,3.35]
[1754002038549,4.82964239,172.81,172.67,3.65352336]
[1754002038745,3.1,172.76,172.71,3.65352336]
[1754002039048,3.1,172.77,172.72,3.35]
[1754002039744,5.789,172.76,172.72,9.14]
[1754002039942,5.789,172.76,172.73,3.35]
[1754002040345,5.7894,172.75,172.73,3.35]
[1754002040748,3.1,172.77,172.73,3.35]
[1754002041249,5.7893,172.75,172.73,3.35]
[1754002041547,3.1,172.79,172.71,3.35]
[1754002041744,5.7888,172.77,172.71,3.35]
[1754002041950,3.1,172.79,172.73,3.35]
[1754002042445,5.40799992,172.81,172.75,3.35]
[1754002042641,3.1,172.76,172.75,3.35]
[1754002042841,5.7892,172.76,172.72,5.79]
[1754002043046,3.1,172.75,172.74,3.35]
[1754002044136,4.82964239,172.85,172.75,3.35]
[1754002044340,3.1,172.79,172.75,3.35]
[1754002044539,3.1,172.82,172.76,3.35]
[1754002045045,5.7877,172.8,172.77,3.35]
[1754002045246,3.1,172.82,172.77,3.35]
[1754002045447,3.1,172.81,172.77,3.35]
[1754002045648,11.5712,172.86,172.71,3.35]
[1754002045851,3.1,172.78,172.71,3.35]
[1754002046040,3.1,172.78,172.73,5.7898]
[1754002046244,3.1,172.8,172.74,3.35]
[1754002047450,5.40799992,172.81,172.72,5.7901]
[1754002047451,3.1,172.78,172.75,3.35]
[1754002047653,3.1,172.77,172.76,3.35]
[1754002047847,8.8886,172.77,172.76,3.35]
[1754002050456,5.7893,172.75,172.71,5.40799992]
[1754002050655,5.7893,172.75,172.72,3.04]
[1754002051254,5.7898,172.74,172.71,5.40799992]
[1754002051456,5.40799992,172.77,172.7,3.04]
[1754002051755,3.21,172.76,172.68,3.04]
[1754002052153,3.21,172.76,172.7,3.04]
[1754002052850,5.7901,172.73,172.71,3.04]
[1754002053052,5.40799992,172.77,172.71,3.04]
[1754002053053,3.21,172.77,172.71,3.04]
[1754002053452,8.999,172.76,172.72,3.04]
[1754002054852,3.21,172.76,172.7,3.04]
[1754002055257,8.999,172.76,172.71,5.7903]
[1754002055456,3.21,172.75,172.72,3.04]
[1754002055956,8.9983,172.78,172.73,5.7896]
[1754002056155,3.21,172.77,172.75,3.04]
[1754002056350,3.21,172.78,172.73,3.04]
[1754002056553,5.40799992,172.77,172.73,3.04]
[1754002056751,3.21,172.76,172.73,3.04]
[1754002056955,3.21,172.74,172.73,3.04]
[1754002058251,3.21,172.74,172.67,113.90799992]
[1754002058456,5.7894,172.75,172.67,113.90799992]
[1754002058457,3.21,172.73,172.72,3.04]
[1754002058652,3.21,172.74,172.73,3.04]
[1754002058854,3.21,172.76,172.73,8.8296]
[1754002059156,5.7887,172.77,172.74,3.04]
[1754002059351,3.21,172.78,172.75,3.04]
[1754002059552,3.21,172.77,172.74,5.7893]
[1754002059753,8.9986,172.77,172.76,3.04]
[1754002059954,8.9986,172.77,172.74,5.7893]
[1754002060149,3.21,172.79,172.77,3.04]
[1754002060551,8.9981,172.79,172.77,3.04]
[1754002060757,8.9981,172.79,172.78,3.04]
[1754002061253,3.21,172.79,172.78,3.04]
[1754002061456,3.21,172.82,172.76,3.04]
[1754002061858,8.9971,172.82,172.79,5.7877]
[1754002062058,5.7871,172.82,172.8,3.04]
[1754002062255,3.21,172.81,172.8,3.04]
[1754002062758,5.7872,172.81,172.76,3.64860389]
[1754002062958,3.21,172.8,172.79,3.04]
[1754002063160,3.21,172.79,172.71,3.04]
[1754002063455,3.21,172.79,172.74,3.04]
[1754002063659,3.21,172.79,172.78,3.04]
[1754002064061,8.9974,172.81,172.78,3.04]
[1754002064262,3.21,172.8,172.79,3.04]
[1754002064456,5.7874,172.81,172.79,3.04]
[1754002064759,5.7868,172.83,172.79,5.7876]
[1754002064959,3.21,172.82,172.76,3.04]
[1754002065159,3.21,172.81,172.76,3.04]
[1754002065360,3.21,172.8,172.76,3.04]
[1754002065556,8.997,172.82,172.76,3.04]
[1754002065955,3.21,172.81,172.75,3.64860389]
[1754002066161,3.21,172.81,172.79,3.04]
[1754002066460,3.21,172.82,172.76,3.04]
[1754002066664,3.21,172.84,172.78,3.04]
[1754002066864,5.7868,172.83,172.78,3.04]
[1754002067052,8.9968,172.83,172.78,3.04]
[1754002067257,8.9968,172.83,172.8,5.7873]
[1754002067564,8.9968,172.83,172.81,3.04]
[1754002067758,3.64860389,172.85,172.81,3.04]
[1754002067958,3.21,172.86,172.81,3.04]
[1754002068261,4.21805984,172.85,172.81,3.04]
[1754002068463,5.7861,172.85,172.82,5.7867]
[1754002068756,3.21,172.86,172.84,3.04]
[1754002068958,8.9955,172.86,172.85,3.04]
[1754002069664,3.21,172.86,172.85,3.04]
[1754002070362,3.21,172.86,172.74,11.5787]
[1754002070363,3.21,172.88,172.86,3.04]
[1754002070563,3.21,172.9,172.83,3.04]
[1754002070859,3.64860389,172.91,172.82,3.64860389]
[1754002070860,10.00295608,172.89,172.85,5.7857]
[1754002071064,8.9948,172.89,172.87,3.04]
[1754002071656,12.64340389,172.89,172.87,3.04]
[1754002071858,8.9949,172.88,172.87,3.04]
[1754002072163,8.9949,172.88,172.84,5.7861]
[1754002072364,3.64860389,172.87,172.84,5.7861]
[1754002072563,3.21,172.86,172.85,3.04]
[1754002073564,3.21,172.87,172.86,3.04]
[1754002075461,9.43350389,172.88,172.86,3.04]
[1754002075462,3.21,172.88,172.86,3.04]
[1754002075968,3.21,172.88,172.82,3.04]
[1754002076163,3.21,172.88,172.84,5.7859]
[1754002076368,3.21,172.88,172.85,3.04]
[1754002076666,3.21,172.88,172.86,3.04]
[1754002077068,3.21,172.87,172.86,3.04]
[1754002077965,3.21,172.87,172.84,5.7859]
[1754002077966,5.7849,172.88,172.84,5.7859]
[1754002078166,8.9949,172.88,172.87,3.04]
[1754002078467,3.29,172.87,172.83,3.31]
[1754002078665,6.93860389,172.84,172.83,3.31]
[1754002078866,6.93860389,172.84,172.79,5.7879]
[1754002079168,3.29,172.81,172.78,3.31]
[1754002079377,3.29,172.81,172.79,3.31]
[1754002079565,3.29,172.81,172.78,5.7882]
[1754002079863,3.29,172.81,172.8,3.31]
[1754002080666,3.64860389,172.82,172.73,3.64860389]
[1754002080865,6.93860389,172.82,172.81,3.31]
[1754002081462,3.64860389,172.82,172.81,3.31]
[1754002081669,3.29,172.83,172.82,3.31]
[1754002082372,3.64860389,172.84,172.78,3.31]
[1754002082562,3.29,172.82,172.78,3.31]
[1754002082972,6.93860389,172.82,172.78,3.31]
[1754002083668,3.64860389,172.82,172.76,3.31]
[1754002083874,6.93860389,172.82,172.76,3.31]
[1754002085272,3.64860389,172.8,172.76,3.31]
[1754002085470,3.29,172.79,172.72,3.31]
[1754002085669,15.21800389,172.89,172.72,3.31]
[1754002085670,3.64860389,172.76,172.72,3.31]
[1754002085866,6.93860389,172.76,172.72,9.1002]
[1754002086069,6.93860389,172.76,172.73,3.31]
[1754002086479,3.64860389,172.76,172.73,3.31]
[1754002086679,3.64860389,172.77,172.74,3.31]
[1754002087173,9.43720389,172.77,172.74,3.31]
[1754002087373,3.29,172.74,172.68,3.31]
[1754002087674,6.93860389,172.71,172.69,3.31]
[1754002087874,6.93860389,172.71,172.7,3.31]
[1754002088273,3.64860389,172.71,172.7,3.31]
[1754002088574,6.93860389,172.73,172.71,3.31]
[1754002088776,8.70190383,172.76,172.69,3.31]
[1754002089173,5.7888,172.77,172.72,5.79]
[1754002089376,5.7888,172.77,172.73,3.31]
[1754002089677,3.29,172.77,172.73,3.31]
[1754002089977,5.41190383,172.78,172.72,3.31]
[1754002089978,9.0789,172.76,172.72,3.31]
[1754002090472,9.0787,172.77,172.73,3.31]
[1754002090668,3.29,172.77,172.73,3.31]
[1754002091073,5.41190383,172.83,172.73,3.31]
[1754002091375,4.21525847,172.82,172.73,3.31]
[1754002091573,7.50525847,172.81,172.73,3.31]
[1754002091775,3.29,172.81,172.75,5.7891]
[1754002091970,3.29,172.8,172.76,3.31]
[1754002092577,3.29,172.8,172.73,3.31]
[1754002093279,3.29,172.8,172.76,5.7887]
[1754002093578,3.29,172.82,172.75,3.31]
[1754002094474,9.0771,172.82,172.77,5.7883]
[1754002094674,3.29,172.81,172.79,3.31]
[1754002094875,4.8079384,172.88,172.77,3.31]
[1754002094876,3.29,172.82,172.77,3.31]
[1754002095073,4.21402081,172.81,172.77,3.31]
[1754002095274,3.29,172.79,172.77,3.31]
[1754002095780,3.29,172.76,172.75,3.31]
[1754002096673,3.29,172.76,172.67,5.41190383]
[1754002096878,3.29,172.75,172.73,3.31]
[1754002097374,4.8079384,172.85,172.67,5.41190383]
[1754002097375,5.41190383,172.77,172.67,5.41190383]
[1754002097580,5.7894,172.75,172.71,9.1005]
[1754002097778,3.29,172.74,172.72,3.31]
[1754002097975,3.29,172.73,172.72,3.31]
[1754002098176,3.29,172.73,172.71,3.31]
[1754002098376,3.29,172.73,172.67,3.31]
[1754002098576,5.7898,172.74,172.67,3.31]
[1754002099081,9.0798,172.74,172.72,3.31]
[1754002099375,3.29,172.74,172.72,3.31]
[1754002099580,3.29,172.74,172.73,3.31]
[1754002099981,9.0796,172.74,172.73,3.31]
[1754002100182,5.7896,172.74,172.71,3.31]
[1754002100485,5.7909,172.7,172.68,3.31]
[1754002100679,5.41190383,172.71,172.65,3.31]
[1754002100878,3.29,172.68,172.6,108.38]
[1754002101075,3.29,172.68,172.67,3.31]
[1754002101280,8.70190383,172.75,172.67,3.31]
[1754002101480,3.29,172.74,172.67,3.31]
[1754002101882,5.7904,172.72,172.69,3.31]
[1754002102083,5.7904,172.72,172.7,3.31]
[1754002102084,9.0804,172.72,172.7,3.31]
[1754002102480,9.0804,172.72,172.71,3.31]
[1754002102877,3.29,172.72,172.68,3.31]
[1754002103077,3.29,172.72,172.63,5.41190383]
[1754002103078,3.29,172.68,172.66,3.31]
[1754002103487,3.29,172.67,172.65,3.31]
[1754002103887,3.29,172.66,172.63,3.31]
[1754002104084,3.29,172.66,172.64,3.31]
[1754002104382,3.29,172.65,172.64,3.31]
[1754002105885,11.20390383,172.67,172.58,92.04763705]
[1754002106081,11.20390383,172.67,172.65,3.31]
[1754002106289,3.29,172.66,172.65,3.31]
[1754002106584,3.29,172.66,172.62,5.7934]
[1754002106786,9.0824,172.66,172.64,3.31]
[1754002107280,9.0826,172.65,172.62,9.1034]
[1754002107484,9.0826,172.65,172.63,3.31]
[1754002107686,9.0826,172.65,172.64,3.31]
[1754002107888,3.29,172.65,172.64,3.31]
[1754002108091,5.7923,172.66,172.63,5.7932]
[1754002108385,5.7923,172.66,172.58,92.04763705]
[1754002108578,3.08,172.64,172.62,3.17]
[1754002108783,3.08,172.64,172.63,3.17]
[1754002109391,3.08,172.64,172.56,3.17]
[1754002109583,5.41190383,172.65,172.56,3.17]
[1754002109883,5.41190383,172.65,172.55,5.41190383]
[1754002109884,14.28470383,172.65,172.61,5.7937]
[1754002110081,3.08,172.65,172.62,3.17]
[1754002110280,8.49190383,172.67,172.62,3.17]
[1754002110480,3.08,172.66,172.62,3.17]
[1754002110784,3.08,172.68,172.6,3.17]
[1754002111185,8.8721,172.67,172.64,3.17]
[1754002111387,8.8721,172.67,172.65,3.17]
[1754002111786,3.08,172.66,172.65,3.17]
[1754002111989,3.08,172.65,172.63,3.17]
[1754002112490,3.08,172.66,172.63,5.793]
[1754002112686,11.20390383,172.67,172.57,5.41190383]
[1754002112890,9.4476043,172.67,172.6,3.17]
[1754002113189,3.6556043,172.67,172.64,3.17]
[1754002113388,11.5769,172.78,172.65,3.6556043]
[1754002113690,5.7905,172.72,172.69,3.17]
[1754002114096,5.7905,172.72,172.68,5.7915]
[1754002114097,3.08,172.72,172.7,3.17]
[1754002114792,3.08,172.72,172.71,3.17]
[1754002115288,8.8706,172.72,172.71,3.17]
[1754002115489,3.08,172.72,172.65,3.17]
[1754002115893,3.08,172.71,172.67,3.17]
[1754002116293,8.8709,172.71,172.67,8.9617]
[1754002116494,8.8709,172.71,172.67,5.7917]
[1754002116694,8.8709,172.71,172.64,5.41212828]
[1754002116695,8.49212828,172.68,172.58,5.41212828]
[1754002116992,8.49212828,172.68,172.59,3.17]
[1754002117188,3.08,172.67,172.59,3.17]
[1754002117494,8.8732,172.64,172.6,5.7942]
[1754002117697,8.8732,172.64,172.62,3.17]
[1754002117891,8.8732,172.64,172.63,3.17]
[1754002118790,8.8732,172.64,172.59,5.7945]
[1754002118992,8.8732,172.64,172.62,3.17]
[1754002118993,5.7933,172.63,172.62,3.17]
[1754002119500,8.873,172.64,172.62,3.17]
[1754002119697,8.873,172.64,172.63,3.17]
[1754002119990,8.49212828,172.66,172.64,3.17]
[1754002120187,5.7928,172.65,172.64,3.17]
[1754002121191,8.8728,172.65,172.64,3.17]
[1754002122101,5.7932,172.64,172.55,6.42050242]
[1754002122394,5.7932,172.64,172.63,3.17]
[1754002124096,5.7934,172.63,172.59,5.7945]
[1754002124298,3.08,172.64,172.55,6.42050242]
[1754002124496,3.08,172.64,172.6,5.7942]
[1754002124698,8.8731,172.64,172.61,3.17]
[1754002125199,5.7933,172.63,172.61,3.17]
[1754002125999,5.7933,172.63,172.62,3.17]
[1754002129103,8.8733,172.63,172.62,3.17]
[1754002130004,5.7933,172.63,172.62,3.17]
[1754002134106,8.8733,172.63,172.62,3.17]
[1754002134300,5.7933,172.63,172.62,3.17]
[1754002134802,6.73666575,172.65,172.62,3.17]
[1754002135106,5.793,172.64,172.62,3.17]
[1754002136303,6.73666575,172.65,172.62,3.17]
[1754002136304,5.7932,172.63,172.62,3.17]
[1754002139111,3.09,172.62,172.6,3.33]
[1754002139310,6.74666575,172.61,172.6,3.33]
[1754002139612,3.09,172.6,172.49,3.33]
[1754002139808,3.09,172.63,172.56,3.33]
[1754002140210,5.7941,172.61,172.58,5.7947]
[1754002140409,6.74666575,172.65,172.59,3.33]
[1754002140609,4.20113252,172.64,172.59,3.33]
[1754002140809,3.09,172.62,172.6,3.33]
[1754002141008,3.09,172.61,172.6,3.33]
[1754002141205,8.8839,172.61,172.6,3.33]
[1754002141712,5.7937,172.62,172.61,3.33]
[1754002142616,5.7937,172.62,172.58,5.7947]
[1754002142810,5.7939,172.61,172.59,3.33]
[1754002143210,5.7946,172.59,172.58,3.33]
[1754002143420,3.65666575,172.65,172.58,3.33]
[1754002143715,5.7932,172.64,172.59,3.33]
[1754002144108,3.09,172.66,172.61,3.33]
[1754002144307,3.65666575,172.67,172.61,3.33]
[1754002144308,5.7931,172.64,172.61,3.33]
[1754002145614,5.7926,172.65,172.61,3.33]
[1754002145811,6.74666575,172.67,172.61,3.33]
[1754002146011,7.3048118,172.66,172.61,3.33]
[1754002146216,3.09,172.66,172.61,3.33]
[1754002146411,5.793,172.64,172.62,3.33]
[1754002147820,3.09,172.66,172.63,3.33]
[1754002148117,3.09,172.66,172.64,3.33]
[1754002148319,3.09,172.65,172.64,3.33]
[1754002148517,7.30782193,172.65,172.64,3.33]
[1754002148717,10.01042193,172.65,172.64,3.33]
[1754002148919,5.7926,172.65,172.64,3.33]
[1754002149421,8.8826,172.65,172.64,3.33]
[1754002150122,20.04590415,172.71,172.53,44.0]
[1754002150413,3.09,172.62,172.55,3.65666575]
[1754002150925,5.7943,172.6,172.58,3.33]
[1754002151717,3.09,172.61,172.58,3.33]
[1754002151916,3.09,172.62,172.56,3.33]
[1754002152215,3.09,172.62,172.58,5.7949]
[1754002152725,5.7939,172.61,172.6,3.33]
[1754002153810,8.8839,172.61,172.6,3.33]
[1754002154014,13.10611197,172.61,172.6,3.33]
[1754002154218,8.8839,172.61,172.6,3.33]
[1754002154423,5.7949,172.59,172.57,3.33]
[1754002154614,5.7949,172.59,172.58,3.33]
[1754002154923,8.8844,172.6,172.58,3.33]
[1754002155228,5.7944,172.6,172.59,3.33]
[1754002155617,5.794,172.61,172.59,3.33]
[1754002155826,3.09,172.67,172.6,3.33]
[1754002156017,4.22050923,172.66,172.6,3.33]
[1754002156217,10.01320923,172.65,172.62,5.7933]
[1754002156415,5.7927,172.65,172.63,3.33]
[1754002156819,5.7929,172.64,172.63,3.33]
[1754002157628,5.7927,172.65,172.63,3.33]
[1754002157924,3.09,172.65,172.64,3.33]
[1754002158323,13.10302998,172.65,172.64,3.33]
[1754002159232,10.01489653,172.65,172.64,3.33]
[1754002161423,4.22229653,172.65,172.61,5.7938]
[1754002161625,3.09,172.63,172.62,3.33]
[1754002161822,7.31229653,172.63,172.62,3.33]
[1754002162021,13.10579653,172.63,172.62,3.33]
[1754002162629,4.22229653,172.63,172.58,3.33]
[1754002163021,4.22229653,172.63,172.59,3.65666575]
[1754002163227,4.22229653,172.63,172.61,3.33]
[1754002163528,6.74666575,172.68,172.61,3.33]
[1754002163529,6.74666575,172.68,172.62,3.33]
[1754002163724,6.74666575,172.68,172.63,5.7931]
[1754002163725,8.8826,172.65,172.63,5.7931]
[1754002163929,7.31811455,172.64,172.62,3.33]
[1754002164130,3.09,172.64,172.63,3.33]
[1754002164429,13.11132535,172.64,172.63,3.33]
[1754002165226,10.02132535,172.64,172.63,3.33]
[1754002167133,13.11132535,172.64,172.63,3.33]
[1754002167930,4.22822535,172.64,172.63,3.33]
[1754002168134,3.09,172.69,172.63,3.33]
[1754002168336,4.23021718,172.68,172.63,3.33]
[1754002168528,4.23021718,172.67,172.64,5.7927]
[1754002168723,4.23021718,172.66,172.65,3.07]
[1754002169234,5.7921,172.67,172.65,3.07]
[1754002170336,5.7922,172.66,172.65,3.07]
[1754002171035,5.792,172.67,172.65,3.07]
[1754002172134,16.39866717,172.74,172.66,5.7922]
[1754002172336,3.2,172.71,172.65,3.07]
[1754002172536,3.2,172.69,172.65,3.07]
[1754002172738,5.792,172.67,172.66,3.07]
[1754002173540,8.992,172.67,172.66,3.07]
[1754002174639,5.792,172.67,172.66,3.07]
[1754002175541,5.7917,172.68,172.66,3.07]
[1754002177642,5.7912,172.7,172.68,3.07]
[1754002178340,5.7907,172.71,172.68,3.07]
[1754002178539,3.2,172.76,172.71,3.07]
[1754002178741,4.22115418,172.75,172.72,3.07]
[1754002179044,5.7899,172.74,172.72,3.07]
[1754002179842,5.7899,172.73,172.72,3.07]
[1754002185747,5.7897,172.74,172.72,3.07]
[1754002185943,3.2,172.75,172.72,3.07]
[1754002186246,5.7899,172.73,172.72,3.07]
[1754002188952,5.7897,172.74,172.72,3.07]
[1754002191256,5.7899,172.73,172.72,3.07]